[Event "Titled Tuesday Blitz April 25 Early 2023"]
[White "Semenova, Alina"]
[Black "Kohler, Aran"]
[WhiteFideId "24113875"]
[BlackFideId "1002856"]
[WhiteElo "1833"]
[BlackElo "2294"]
[Result "1-0"]
[Round "05"]
[TimeControl "180+2"]
[Date "2023.04.25"]
[WhiteClock "0:01:19"]
[BlackClock "0:00:36"]

1. e4 {[%clk 0:03:00]}  c6 {[%clk 0:02:59]} 2. d4 {[%clk 0:02:59]}  d5 {[%clk 0:02:59]} 3. Nd2 {[%clk 0:02:59]}  dxe4 {[%clk 0:02:58]} 4. Nxe4 {[%clk 0:03:00]}  Bf5 {[%clk 0:02:58]} 5. Ng3 {[%clk 0:03:00]}  Bg6 {[%clk 0:02:59]} 6. Nf3 {[%clk 0:03:00]}  Nd7 {[%clk 0:02:58]} 7. h4 {[%clk 0:03:00]}  h6 {[%clk 0:02:54]} 8. h5 {[%clk 0:02:59]}  Bh7 {[%clk 0:02:54]} 9. Bd3 {[%clk 0:02:59]}  Ngf6 {[%clk 0:02:48]} 10. O-O {[%clk 0:02:56]}  e6 {[%clk 0:02:47]} 11. Bf4 {[%clk 0:02:48]}  Be7 {[%clk 0:02:43]} 12. c4 {[%clk 0:02:44]}  Bxd3 {[%clk 0:02:30]} 13. Qxd3 {[%clk 0:02:45]}  Qa5 {[%clk 0:02:30]} 14. a3 {[%clk 0:02:44]}  Nxh5 {[%clk 0:02:27]} 15. Nxh5 {[%clk 0:02:40]}  Qxh5 {[%clk 0:02:25]} 16. Rfe1 {[%clk 0:02:37]}  O-O-O {[%clk 0:02:16]} 17. b4 {[%clk 0:02:35]}  g5 {[%clk 0:02:05]} 18. Bg3 {[%clk 0:02:29]}  Nb6 {[%clk 0:01:54]} 19. Qc3 {[%clk 0:02:12]}  Kd7 {[%clk 0:01:36]} 20. d5 {[%clk 0:02:03]}  cxd5 {[%clk 0:01:31]} 21. cxd5 {[%clk 0:02:02]}  Nxd5 {[%clk 0:01:31]} 22. Qe5 {[%clk 0:02:01]}  Rhg8 {[%clk 0:01:19]} 23. Rad1 {[%clk 0:02:01]}  Ke8 {[%clk 0:01:18]} 24. Nd4 {[%clk 0:01:31]}  Bd6 {[%clk 0:01:02]} 25. Qxd5 {[%clk 0:01:24]}  Bxg3 {[%clk 0:01:02]} 26. Qb5+ {[%clk 0:01:23]}  Kf8 {[%clk 0:01:00]} 27. fxg3 {[%clk 0:01:23]}  Qg4 {[%clk 0:00:52]} 28. Nxe6+ {[%clk 0:01:22]}  fxe6 {[%clk 0:00:43]} 29. Rxd8+ {[%clk 0:01:22]}  Kg7 {[%clk 0:00:43]} 30. Rxg8+ {[%clk 0:01:22]}  Kxg8 {[%clk 0:00:44]} 31. Qe8+ {[%clk 0:01:22]}  Kg7 {[%clk 0:00:44]} 32. Qe7+ {[%clk 0:01:22]}  Kh8 {[%clk 0:00:43]} 33. Qf6+ {[%clk 0:01:21]}  Kh7 {[%clk 0:00:40]} 34. Qxe6 {[%clk 0:01:20]}  Qxg3 {[%clk 0:00:38]} 35. Qe4+ {[%clk 0:01:19]}  Kg8 {[%clk 0:00:36]} 36. Qg6+ {[%clk 0:01:19]} 1-0


[Site "https://www.chess.com"]

[Event "Titled Tuesday Blitz April 25 Early 2023"]
[White "Amitpal, Singh"]
[Black "Womacka, Mathias"]
[WhiteFideId "5012899"]
[BlackFideId "4611390"]
[WhiteElo "2107"]
[BlackElo "2377"]
[Result "0-1"]
[Round "05"]
[TimeControl "180+2"]
[Date "2023.04.25"]
[WhiteClock "0:00:03"]
[BlackClock "0:00:49"]

1. e4 {[%clk 0:02:53]}  c5 {[%clk 0:02:58]} 2. Nc3 {[%clk 0:02:49]}  Nc6 {[%clk 0:02:56]} 3. Bb5 {[%clk 0:02:48]}  Nd4 {[%clk 0:02:56]} 4. Nf3 {[%clk 0:02:49]}  Nxb5 {[%clk 0:02:54]} 5. Nxb5 {[%clk 0:02:50]}  d6 {[%clk 0:02:54]} 6. O-O {[%clk 0:02:44]}  Nf6 {[%clk 0:02:53]} 7. Re1 {[%clk 0:02:34]}  a6 {[%clk 0:02:51]} 8. Nc3 {[%clk 0:02:32]}  g6 {[%clk 0:02:51]} 9. d4 {[%clk 0:02:28]}  cxd4 {[%clk 0:02:51]} 10. Qxd4 {[%clk 0:02:28]}  Bg7 {[%clk 0:02:51]} 11. e5 {[%clk 0:02:27]}  Nd7 {[%clk 0:02:51]} 12. Bf4 {[%clk 0:02:11]}  dxe5 {[%clk 0:02:39]} 13. Bxe5 {[%clk 0:02:06]}  Nxe5 {[%clk 0:02:35]} 14. Qxd8+ {[%clk 0:02:03]}  Kxd8 {[%clk 0:02:36]} 15. Nxe5 {[%clk 0:02:02]}  Be6 {[%clk 0:02:31]} 16. Rad1+ {[%clk 0:01:58]}  Kc7 {[%clk 0:02:29]} 17. Nd5+ {[%clk 0:01:58]}  Bxd5 {[%clk 0:02:29]} 18. Rxd5 {[%clk 0:01:57]}  Bxe5 {[%clk 0:02:19]} 19. Rexe5 {[%clk 0:01:51]}  e6 {[%clk 0:02:19]} 20. Rc5+ {[%clk 0:01:50]}  Kd6 {[%clk 0:02:16]} 21. f4 {[%clk 0:01:49]}  Rhc8 {[%clk 0:02:12]} 22. Rxc8 {[%clk 0:01:41]}  Rxc8 {[%clk 0:02:13]} 23. c3 {[%clk 0:01:38]}  Rc4 {[%clk 0:02:04]} 24. g3 {[%clk 0:01:37]}  b5 {[%clk 0:02:00]} 25. a3 {[%clk 0:01:32]}  Rc5 {[%clk 0:01:48]} 26. Re2 {[%clk 0:01:17]}  Rd5 {[%clk 0:01:47]} 27. Kf2 {[%clk 0:01:17]}  Rd1 {[%clk 0:01:46]} 28. Ke3 {[%clk 0:01:16]}  Kd5 {[%clk 0:01:46]} 29. Rd2+ {[%clk 0:01:02]}  Rxd2 {[%clk 0:01:41]} 30. Kxd2 {[%clk 0:01:03]}  Ke4 {[%clk 0:01:38]} 31. b3 {[%clk 0:00:55]}  h5 {[%clk 0:01:31]} 32. Ke2 {[%clk 0:00:53]}  f6 {[%clk 0:01:30]} 33. Kd2 {[%clk 0:00:51]}  h4 {[%clk 0:01:27]} 34. Ke2 {[%clk 0:00:50]}  h3 {[%clk 0:01:26]} 35. Kd2 {[%clk 0:00:38]}  e5 {[%clk 0:01:24]} 36. fxe5 {[%clk 0:00:36]}  fxe5 {[%clk 0:01:25]} 37. Ke2 {[%clk 0:00:36]}  a5 {[%clk 0:01:19]} 38. Kd2 {[%clk 0:00:34]}  Kf3 {[%clk 0:01:17]} 39. c4 {[%clk 0:00:33]}  bxc4 {[%clk 0:01:17]} 40. bxc4 {[%clk 0:00:34]}  e4 {[%clk 0:01:17]} 41. Ke1 {[%clk 0:00:17]}  Kg2 {[%clk 0:01:09]} 42. c5 {[%clk 0:00:17]}  Kxh2 {[%clk 0:01:09]} 43. c6 {[%clk 0:00:14]}  Kxg3 {[%clk 0:01:01]} 44. c7 {[%clk 0:00:15]}  h2 {[%clk 0:01:01]} 45. c8=Q {[%clk 0:00:16]}  h1=Q+ {[%clk 0:01:01]} 46. Ke2 {[%clk 0:00:16]}  Qf3+ {[%clk 0:00:59]} 47. Kd2 {[%clk 0:00:16]}  Qxa3 {[%clk 0:00:58]} 48. Qc7+ {[%clk 0:00:14]}  Kg2 {[%clk 0:00:57]} 49. Qc6 {[%clk 0:00:11]}  Qd3+ {[%clk 0:00:54]} 50. Ke1 {[%clk 0:00:10]}  g5 {[%clk 0:00:52]} 51. Qf6 {[%clk 0:00:04]}  Qe3+ {[%clk 0:00:49]} 52. Kd1 {[%clk 0:00:03]}  g4 {[%clk 0:00:49]} 0-1


[Site "https://www.chess.com"]

[Event "Titled Tuesday Blitz April 25 Early 2023"]
[White "Silvestre, Christian"]
[Black "dDobravcan"]
[WhiteFideId "30956269"]
[WhiteElo "2344"]
[BlackElo "2146"]
[Result "1-0"]
[Round "05"]
[TimeControl "180+2"]
[Date "2023.04.25"]
[WhiteClock "0:00:20"]
[BlackClock "0:00:02"]

1. d4 {[%clk 0:03:00]}  d6 {[%clk 0:02:57]} 2. e4 {[%clk 0:03:00]}  Nf6 {[%clk 0:02:56]} 3. f3 {[%clk 0:02:59]}  c6 {[%clk 0:02:55]} 4. Bd3 {[%clk 0:02:57]}  Qb6 {[%clk 0:02:53]} 5. Ne2 {[%clk 0:02:56]}  e5 {[%clk 0:02:53]} 6. c3 {[%clk 0:02:50]}  Be7 {[%clk 0:02:51]} 7. Qc2 {[%clk 0:02:49]}  O-O {[%clk 0:02:51]} 8. Be3 {[%clk 0:02:49]}  Nbd7 {[%clk 0:02:46]} 9. Bf2 {[%clk 0:02:47]}  Qc7 {[%clk 0:02:44]} 10. Nd2 {[%clk 0:02:46]}  Re8 {[%clk 0:02:38]} 11. a4 {[%clk 0:02:43]}  a5 {[%clk 0:02:25]} 12. O-O {[%clk 0:02:41]}  Bf8 {[%clk 0:02:18]} 13. Ng3 {[%clk 0:02:33]}  g6 {[%clk 0:02:14]} 14. Rad1 {[%clk 0:02:20]}  d5 {[%clk 0:02:12]} 15. Rfe1 {[%clk 0:02:16]}  h5 {[%clk 0:02:07]} 16. Ngf1 {[%clk 0:02:08]}  Bg7 {[%clk 0:01:48]} 17. exd5 {[%clk 0:02:00]}  Nxd5 {[%clk 0:01:46]} 18. Nc4 {[%clk 0:01:41]}  Nf4 {[%clk 0:01:17]} 19. dxe5 {[%clk 0:01:30]}  Nxd3 {[%clk 0:01:11]} 20. Qxd3 {[%clk 0:01:28]}  Nxe5 {[%clk 0:01:08]} 21. Nxe5 {[%clk 0:01:24]}  Bxe5 {[%clk 0:01:06]} 22. f4 {[%clk 0:01:20]}  Bf5 {[%clk 0:01:06]} 23. fxe5 {[%clk 0:01:05]}  Bxd3 {[%clk 0:01:05]} 24. Rxd3 {[%clk 0:01:03]}  Rxe5 {[%clk 0:00:57]} 25. Red1 {[%clk 0:01:02]}  Rae8 {[%clk 0:00:53]} 26. h4 {[%clk 0:00:55]}  Re2 {[%clk 0:00:49]} 27. R3d2 {[%clk 0:00:52]}  Qf4 {[%clk 0:00:43]} 28. Rxe2 {[%clk 0:00:45]}  Rxe2 {[%clk 0:00:41]} 29. Rd8+ {[%clk 0:00:41]}  Kh7 {[%clk 0:00:38]} 30. Bd4 {[%clk 0:00:41]}  f6 {[%clk 0:00:29]} 31. Rd7+ {[%clk 0:00:33]}  Kg8 {[%clk 0:00:24]} 32. Rd8+ {[%clk 0:00:29]}  Kf7 {[%clk 0:00:23]} 33. Rd7+ {[%clk 0:00:27]}  Ke6 {[%clk 0:00:23]} 34. Rd8 {[%clk 0:00:27]}  Re1 {[%clk 0:00:22]} 35. Re8+ {[%clk 0:00:26]}  Kd5 {[%clk 0:00:21]} 36. Rxe1 {[%clk 0:00:26]}  Kc4 {[%clk 0:00:21]} 37. Ne3+ {[%clk 0:00:17]}  Kb3 {[%clk 0:00:21]} 38. Rf1 {[%clk 0:00:17]}  Qd6 {[%clk 0:00:20]} 39. Rxf6 {[%clk 0:00:16]}  Qg3 {[%clk 0:00:19]} 40. Rf2 {[%clk 0:00:16]}  Qxh4 {[%clk 0:00:18]} 41. Nf1 {[%clk 0:00:15]}  Qg4 {[%clk 0:00:17]} 42. Nh2 {[%clk 0:00:15]}  Qe6 {[%clk 0:00:16]} 43. Nf3 {[%clk 0:00:15]}  Qg4 {[%clk 0:00:14]} 44. Ne5 {[%clk 0:00:15]}  Qe4 {[%clk 0:00:13]} 45. Nf3 {[%clk 0:00:13]}  h4 {[%clk 0:00:12]} 46. Nd2+ {[%clk 0:00:13]}  Kxb2 {[%clk 0:00:11]} 47. Nxe4+ {[%clk 0:00:14]}  Kb3 {[%clk 0:00:10]} 48. Nc5+ {[%clk 0:00:15]}  Kc4 {[%clk 0:00:10]} 49. Nxb7 {[%clk 0:00:16]}  Kd5 {[%clk 0:00:09]} 50. Nxa5 {[%clk 0:00:16]}  c5 {[%clk 0:00:06]} 51. Bxc5 {[%clk 0:00:17]}  Kxc5 {[%clk 0:00:05]} 52. Rf6 {[%clk 0:00:17]}  g5 {[%clk 0:00:03]} 53. Rg6 {[%clk 0:00:18]}  Kd5 {[%clk 0:00:02]} 54. Rxg5+ {[%clk 0:00:19]}  Ke4 {[%clk 0:00:02]} 55. Rg4+ {[%clk 0:00:20]}  Kd3 {[%clk 0:00:02]} 56. Rxh4 {[%clk 0:00:20]}  Kxc3 {[%clk 0:00:02]} 57. Nc6 {[%clk 0:00:20]} 1-0


[Site "https://www.chess.com"]

[Event "Titled Tuesday Blitz April 25 Early 2023"]
[White "Flis, Pawel"]
[Black "Melaugh, Shane"]
[WhiteFideId "1112864"]
[BlackFideId "2509580"]
[WhiteElo "1822"]
[BlackElo "2034"]
[Result "0-1"]
[Round "05"]
[TimeControl "180+2"]
[Date "2023.04.25"]
[WhiteClock "0:00:05"]
[BlackClock "0:00:24"]

1. e4 {[%clk 0:02:55]}  c5 {[%clk 0:02:51]} 2. Nf3 {[%clk 0:02:54]}  Nc6 {[%clk 0:02:49]} 3. d4 {[%clk 0:02:53]}  cxd4 {[%clk 0:02:40]} 4. Nxd4 {[%clk 0:02:54]}  Nf6 {[%clk 0:02:40]} 5. Nc3 {[%clk 0:02:55]}  e5 {[%clk 0:02:37]} 6. Ndb5 {[%clk 0:02:55]}  d6 {[%clk 0:02:37]} 7. Bg5 {[%clk 0:02:54]}  a6 {[%clk 0:02:37]} 8. Na3 {[%clk 0:02:53]}  b5 {[%clk 0:02:37]} 9. Nd5 {[%clk 0:02:53]}  Be7 {[%clk 0:02:38]} 10. Bxf6 {[%clk 0:02:53]}  Bxf6 {[%clk 0:02:38]} 11. c3 {[%clk 0:02:54]}  O-O {[%clk 0:02:38]} 12. Nc2 {[%clk 0:02:53]}  Bg5 {[%clk 0:02:39]} 13. a4 {[%clk 0:02:52]}  bxa4 {[%clk 0:02:38]} 14. Rxa4 {[%clk 0:02:49]}  a5 {[%clk 0:02:38]} 15. Bc4 {[%clk 0:02:47]}  Be6 {[%clk 0:02:25]} 16. O-O {[%clk 0:02:46]}  Ne7 {[%clk 0:02:23]} 17. b3 {[%clk 0:02:42]}  f5 {[%clk 0:01:50]} 18. Nxe7+ {[%clk 0:02:32]}  Qxe7 {[%clk 0:01:50]} 19. Qd3 {[%clk 0:01:55]}  f4 {[%clk 0:01:40]} 20. f3 {[%clk 0:01:45]}  Kh8 {[%clk 0:01:33]} 21. Rd1 {[%clk 0:01:43]}  Bxc4 {[%clk 0:01:32]} 22. Rxc4 {[%clk 0:01:34]}  Qa7+ {[%clk 0:01:32]} 23. Kh1 {[%clk 0:01:29]}  Be7 {[%clk 0:01:32]} 24. Qd5 {[%clk 0:01:23]}  Qb6 {[%clk 0:01:29]} 25. b4 {[%clk 0:01:09]}  a4 {[%clk 0:01:26]} 26. Na3 {[%clk 0:01:05]}  Qf2 {[%clk 0:01:04]} 27. Qd2 {[%clk 0:01:03]}  Qxd2 {[%clk 0:00:52]} 28. Rxd2 {[%clk 0:01:02]}  Rfc8 {[%clk 0:00:53]} 29. Rxc8+ {[%clk 0:00:58]}  Rxc8 {[%clk 0:00:54]} 30. c4 {[%clk 0:00:56]}  d5 {[%clk 0:00:53]} 31. exd5 {[%clk 0:00:54]}  Bxb4 {[%clk 0:00:53]} 32. Rd3 {[%clk 0:00:52]}  Bxa3 {[%clk 0:00:53]} 33. Rxa3 {[%clk 0:00:52]}  Rxc4 {[%clk 0:00:53]} 34. g3 {[%clk 0:00:45]}  Kg8 {[%clk 0:00:50]} 35. gxf4 {[%clk 0:00:28]}  exf4 {[%clk 0:00:46]} 36. Kg2 {[%clk 0:00:28]}  Kf7 {[%clk 0:00:46]} 37. Kh3 {[%clk 0:00:28]}  Kf6 {[%clk 0:00:46]} 38. Kg4 {[%clk 0:00:28]}  Ke5 {[%clk 0:00:46]} 39. Rd3 {[%clk 0:00:23]}  Kd6 {[%clk 0:00:47]} 40. Kf5 {[%clk 0:00:17]}  Rc5 {[%clk 0:00:31]} 41. Kxf4 {[%clk 0:00:14]}  Rxd5 {[%clk 0:00:31]} 42. Ra3 {[%clk 0:00:14]}  Ra5 {[%clk 0:00:30]} 43. Ke4 {[%clk 0:00:13]}  Kc5 {[%clk 0:00:30]} 44. f4 {[%clk 0:00:07]}  Kb4 {[%clk 0:00:29]} 45. Ra1 {[%clk 0:00:07]}  a3 {[%clk 0:00:30]} 46. Rb1+ {[%clk 0:00:07]}  Kc3 {[%clk 0:00:30]} 47. Rb8 {[%clk 0:00:05]}  a2 {[%clk 0:00:29]} 48. Rc8+ {[%clk 0:00:05]}  Kd2 {[%clk 0:00:26]} 49. Rd8+ {[%clk 0:00:05]}  Ke2 {[%clk 0:00:26]} 50. Ra8 {[%clk 0:00:05]}  Rxa8 {[%clk 0:00:24]} 0-1


[Site "https://www.chess.com"]

[Event "Titled Tuesday Blitz April 25 Early 2023"]
[White "Sovetbekova, Nurai"]
[Black "Steenbekkers, Franck"]
[WhiteFideId "13801910"]
[BlackFideId "1004220"]
[WhiteElo "1857"]
[BlackElo "2096"]
[Result "0-1"]
[Round "05"]
[TimeControl "180+2"]
[Date "2023.04.25"]
[WhiteClock "0:00:02"]
[BlackClock "0:00:36"]

1. d4 {[%clk 0:03:00]}  Nf6 {[%clk 0:02:58]} 2. c4 {[%clk 0:03:00]}  g6 {[%clk 0:02:53]} 3. Nc3 {[%clk 0:02:59]}  Bg7 {[%clk 0:02:54]} 4. e4 {[%clk 0:02:59]}  d6 {[%clk 0:02:53]} 5. Nf3 {[%clk 0:02:59]}  O-O {[%clk 0:02:52]} 6. Be2 {[%clk 0:03:00]}  e5 {[%clk 0:02:52]} 7. d5 {[%clk 0:03:00]}  a5 {[%clk 0:02:50]} 8. Bg5 {[%clk 0:02:59]}  Na6 {[%clk 0:02:50]} 9. Nd2 {[%clk 0:02:53]}  h6 {[%clk 0:02:49]} 10. Be3 {[%clk 0:02:51]}  Nc5 {[%clk 0:02:45]} 11. O-O {[%clk 0:02:32]}  Nh7 {[%clk 0:02:43]} 12. f4 {[%clk 0:02:22]}  f5 {[%clk 0:02:41]} 13. fxe5 {[%clk 0:02:19]}  Bxe5 {[%clk 0:02:37]} 14. Nf3 {[%clk 0:02:14]}  Bxc3 {[%clk 0:02:33]} 15. bxc3 {[%clk 0:02:13]}  Nxe4 {[%clk 0:02:33]} 16. Bxh6 {[%clk 0:02:10]}  Nxc3 {[%clk 0:02:30]} 17. Qd2 {[%clk 0:02:01]}  Nxe2+ {[%clk 0:02:29]} 18. Qxe2 {[%clk 0:02:01]}  Re8 {[%clk 0:02:28]} 19. Qd2 {[%clk 0:01:55]}  Qf6 {[%clk 0:02:22]} 20. Ng5 {[%clk 0:01:40]}  Bd7 {[%clk 0:02:15]} 21. Nxh7 {[%clk 0:01:34]}  Kxh7 {[%clk 0:02:14]} 22. Rab1 {[%clk 0:01:29]}  b6 {[%clk 0:02:13]} 23. Rf3 {[%clk 0:01:27]}  Re4 {[%clk 0:02:01]} 24. Rh3 {[%clk 0:01:04]}  Kg8 {[%clk 0:01:57]} 25. Rf1 {[%clk 0:00:37]}  Rae8 {[%clk 0:01:55]} 26. Be3 {[%clk 0:00:28]}  Qe5 {[%clk 0:01:45]} 27. Bf2 {[%clk 0:00:18]}  Qf4 {[%clk 0:01:38]} 28. Qc3 {[%clk 0:00:12]}  Qe5 {[%clk 0:01:28]} 29. Qd2 {[%clk 0:00:12]}  f4 {[%clk 0:01:27]} 30. Rf3 {[%clk 0:00:06]}  Bg4 {[%clk 0:01:24]} 31. Rb3 {[%clk 0:00:05]}  Re2 {[%clk 0:01:15]} 32. Qc1 {[%clk 0:00:05]}  f3 {[%clk 0:01:09]} 33. gxf3 {[%clk 0:00:05]}  Bh3 {[%clk 0:01:06]} 34. f4 {[%clk 0:00:04]}  Qf5 {[%clk 0:00:58]} 35. Rd1 {[%clk 0:00:02]}  Rxa2 {[%clk 0:00:43]} 36. Rg3 {[%clk 0:00:01]}  Ree2 {[%clk 0:00:40]} 37. Bd4 {[%clk 0:00:01]}  Rg2+ {[%clk 0:00:38]} 38. Kh1 {[%clk 0:00:01]}  Rxg3 {[%clk 0:00:36]} 39. hxg3 {[%clk 0:00:02]}  Qe4+ {[%clk 0:00:36]} 40. Kg1 {[%clk 0:00:02]}  Qg2# {[%clk 0:00:36]} 0-1


[Site "https://www.chess.com"]

[Event "Titled Tuesday Blitz April 25 Early 2023"]
[White "Della Corte, Alessandro"]
[Black "Necula, Iulian"]
[WhiteFideId "813540"]
[BlackFideId "1232380"]
[WhiteElo "2205"]
[BlackElo "1790"]
[Result "1-0"]
[Round "05"]
[TimeControl "180+2"]
[Date "2023.04.25"]
[WhiteClock "0:01:20"]
[BlackClock "0:00:26"]

1. d4 {[%clk 0:02:59]}  d6 {[%clk 0:03:00]} 2. c4 {[%clk 0:02:59]}  e5 {[%clk 0:03:00]} 3. dxe5 {[%clk 0:03:00]}  dxe5 {[%clk 0:03:01]} 4. Qxd8+ {[%clk 0:03:00]}  Kxd8 {[%clk 0:03:01]} 5. Nc3 {[%clk 0:03:00]}  c6 {[%clk 0:03:01]} 6. Nf3 {[%clk 0:03:00]}  f6 {[%clk 0:03:02]} 7. e3 {[%clk 0:03:01]}  Be6 {[%clk 0:03:01]} 8. Be2 {[%clk 0:03:01]}  Nd7 {[%clk 0:03:01]} 9. O-O {[%clk 0:03:01]}  Nh6 {[%clk 0:03:00]} 10. Rd1 {[%clk 0:03:01]}  Kc7 {[%clk 0:03:00]} 11. b3 {[%clk 0:03:01]}  a5 {[%clk 0:02:59]} 12. Bb2 {[%clk 0:03:02]}  Be7 {[%clk 0:02:47]} 13. Rac1 {[%clk 0:03:02]}  Nf5 {[%clk 0:02:46]} 14. Nd5+ {[%clk 0:03:01]}  Kd8 {[%clk 0:02:29]} 15. Nxe7 {[%clk 0:02:54]}  Kxe7 {[%clk 0:02:28]} 16. Nd2 {[%clk 0:02:52]}  Kf7 {[%clk 0:02:25]} 17. Ne4 {[%clk 0:02:52]}  h5 {[%clk 0:02:06]} 18. Rd2 {[%clk 0:02:46]}  a4 {[%clk 0:02:05]} 19. Rcd1 {[%clk 0:02:44]}  axb3 {[%clk 0:02:04]} 20. axb3 {[%clk 0:02:44]}  Ke7 {[%clk 0:01:46]} 21. Bc3 {[%clk 0:02:40]}  b6 {[%clk 0:01:42]} 22. Nd6 {[%clk 0:02:32]}  Nxd6 {[%clk 0:01:41]} 23. Rxd6 {[%clk 0:02:33]}  Rac8 {[%clk 0:01:37]} 24. Bf3 {[%clk 0:02:27]}  c5 {[%clk 0:01:37]} 25. R6d2 {[%clk 0:02:15]}  Rc7 {[%clk 0:01:36]} 26. Kf1 {[%clk 0:02:12]}  g6 {[%clk 0:01:35]} 27. Be4 {[%clk 0:02:10]}  f5 {[%clk 0:01:33]} 28. Bd5 {[%clk 0:02:01]}  Bxd5 {[%clk 0:01:22]} 29. Rxd5 {[%clk 0:02:02]}  Ra8 {[%clk 0:01:04]} 30. Bxe5 {[%clk 0:02:00]}  Nxe5 {[%clk 0:01:03]} 31. Rxe5+ {[%clk 0:02:01]}  Kf7 {[%clk 0:01:02]} 32. f4 {[%clk 0:02:00]}  Ra3 {[%clk 0:01:01]} 33. Rd6 {[%clk 0:01:54]}  Rxb3 {[%clk 0:00:59]} 34. Kf2 {[%clk 0:01:54]}  Rb4 {[%clk 0:00:54]} 35. Ree6 {[%clk 0:01:53]}  Rxc4 {[%clk 0:00:53]} 36. Rxg6 {[%clk 0:01:53]}  b5 {[%clk 0:00:50]} 37. Rdf6+ {[%clk 0:01:52]}  Ke7 {[%clk 0:00:50]} 38. Rxf5 {[%clk 0:01:51]}  b4 {[%clk 0:00:49]} 39. Rxh5 {[%clk 0:01:51]}  Kd7 {[%clk 0:00:42]} 40. Rh7+ {[%clk 0:01:50]}  Kc8 {[%clk 0:00:42]} 41. Rg8+ {[%clk 0:01:42]}  Kb7 {[%clk 0:00:42]} 42. Rhh8 {[%clk 0:01:40]}  Rc2+ {[%clk 0:00:39]} 43. Kf3 {[%clk 0:01:40]}  c4 {[%clk 0:00:39]} 44. Rb8+ {[%clk 0:01:39]}  Kc6 {[%clk 0:00:39]} 45. Rxb4 {[%clk 0:01:40]}  c3 {[%clk 0:00:39]} 46. h4 {[%clk 0:01:37]}  Rc1 {[%clk 0:00:39]} 47. h5 {[%clk 0:01:36]}  Kc5 {[%clk 0:00:39]} 48. Rb3 {[%clk 0:01:32]}  Kc4 {[%clk 0:00:38]} 49. Ra3 {[%clk 0:01:31]}  Kd3 {[%clk 0:00:35]} 50. h6 {[%clk 0:01:29]}  Rf1+ {[%clk 0:00:34]} 51. Kg4 {[%clk 0:01:27]}  Kd2 {[%clk 0:00:31]} 52. h7 {[%clk 0:01:24]}  Rh1 {[%clk 0:00:30]} 53. Rd8+ {[%clk 0:01:23]}  Kc2 {[%clk 0:00:28]} 54. h8=Q {[%clk 0:01:22]}  Rxh8 {[%clk 0:00:26]} 55. Rxh8 {[%clk 0:01:22]}  Kb2 {[%clk 0:00:27]} 56. Rxc3 {[%clk 0:01:20]}  Kxc3 {[%clk 0:00:26]} 57. Rd8 {[%clk 0:01:20]}  Rg7+ {[%clk 0:00:26]} 58. Kf3 {[%clk 0:01:20]} 1-0


[Site "https://www.chess.com"]

[Event "Titled Tuesday Blitz April 25 Early 2023"]
[White "Schut, Han"]
[Black "Lohani, Sujana"]
[WhiteFideId "1005561"]
[BlackFideId "12311987"]
[WhiteElo "2024"]
[BlackElo "1718"]
[Result "1-0"]
[Round "05"]
[TimeControl "180+2"]
[Date "2023.04.25"]
[WhiteClock "0:01:50"]
[BlackClock "0:00:10"]

1. e4 {[%clk 0:03:00]}  c6 {[%clk 0:00:53]} 2. d4 {[%clk 0:02:51]}  d5 {[%clk 0:00:54]} 3. exd5 {[%clk 0:02:52]}  cxd5 {[%clk 0:00:49]} 4. c4 {[%clk 0:02:53]}  Nf6 {[%clk 0:00:46]} 5. Nc3 {[%clk 0:02:54]}  e6 {[%clk 0:00:44]} 6. Nf3 {[%clk 0:02:55]}  Be7 {[%clk 0:00:43]} 7. cxd5 {[%clk 0:02:55]}  exd5 {[%clk 0:00:42]} 8. Ne5 {[%clk 0:02:55]}  O-O {[%clk 0:00:41]} 9. f4 {[%clk 0:02:55]}  Re8 {[%clk 0:00:41]} 10. Be2 {[%clk 0:02:38]}  Nc6 {[%clk 0:00:41]} 11. O-O {[%clk 0:02:37]}  Ne4 {[%clk 0:00:36]} 12. Bf3 {[%clk 0:02:05]}  Qb6 {[%clk 0:00:21]} 13. Nxd5 {[%clk 0:01:52]}  Nf6 {[%clk 0:00:11]} 14. Nxb6 {[%clk 0:01:50]}  axb6 {[%clk 0:00:10]} 15. Nxc6 {[%clk 0:01:49]}  bxc6 {[%clk 0:00:10]} 16. Bxc6 {[%clk 0:01:50]} 1-0


[Site "https://www.chess.com"]

[Event "Titled Tuesday Blitz April 25 Early 2023"]
[White "Coelho, Ramyres Santana"]
[Black "Sanchez, Robert"]
[WhiteFideId "2120690"]
[BlackFideId "2034360"]
[WhiteElo "1888"]
[BlackElo "1943"]
[Result "1-0"]
[Round "05"]
[TimeControl "180+2"]
[Date "2023.04.25"]
[WhiteClock "0:01:47"]
[BlackClock "0:01:00"]

1. e4 {[%clk 0:03:00]}  e6 {[%clk 0:03:00]} 2. d4 {[%clk 0:02:59]}  d5 {[%clk 0:03:00]} 3. Nc3 {[%clk 0:03:00]}  Nf6 {[%clk 0:03:01]} 4. e5 {[%clk 0:03:00]}  Ne4 {[%clk 0:03:01]} 5. f4 {[%clk 0:03:01]}  Qh4+ {[%clk 0:03:01]} 6. g3 {[%clk 0:02:59]}  Nxg3 {[%clk 0:03:01]} 7. hxg3 {[%clk 0:03:00]}  Qxh1 {[%clk 0:03:01]} 8. Kf2 {[%clk 0:03:00]}  c5 {[%clk 0:02:52]} 9. Bg2 {[%clk 0:02:59]}  Qh2 {[%clk 0:02:51]} 10. Nb5 {[%clk 0:02:54]}  Na6 {[%clk 0:02:52]} 11. Be3 {[%clk 0:02:52]}  Bd7 {[%clk 0:02:52]} 12. Nf3 {[%clk 0:02:50]}  Qh5 {[%clk 0:02:49]} 13. Qe2 {[%clk 0:02:43]}  h6 {[%clk 0:02:38]} 14. Nd6+ {[%clk 0:02:33]}  Bxd6 {[%clk 0:02:37]} 15. exd6 {[%clk 0:02:33]}  cxd4 {[%clk 0:02:36]} 16. Bxd4 {[%clk 0:02:31]}  O-O {[%clk 0:02:35]} 17. Rh1 {[%clk 0:02:30]}  Qf5 {[%clk 0:02:07]} 18. Ne5 {[%clk 0:02:28]}  Rfc8 {[%clk 0:01:42]} 19. c3 {[%clk 0:02:24]}  Rd8 {[%clk 0:01:34]} 20. Rh5 {[%clk 0:02:20]}  Qh7 {[%clk 0:01:33]} 21. g4 {[%clk 0:02:14]}  f6 {[%clk 0:01:33]} 22. Nd3 {[%clk 0:02:06]}  Qg6 {[%clk 0:01:20]} 23. f5 {[%clk 0:02:01]}  exf5 {[%clk 0:01:16]} 24. Bxd5+ {[%clk 0:02:01]}  Kh7 {[%clk 0:01:11]} 25. gxf5 {[%clk 0:01:53]}  Bxf5 {[%clk 0:01:04]} 26. Nf4 {[%clk 0:01:52]}  Qg4 {[%clk 0:01:04]} 27. Rxf5 {[%clk 0:01:49]}  Re8 {[%clk 0:01:00]} 28. Qxg4 {[%clk 0:01:47]} 1-0


[Site "https://www.chess.com"]